bitfinex/quotes_ETHUSD_20240710
["timestamp","ask_amount","ask_price","bid_price","bid_amount"]
[1720580893731,0.0635826,3084.8,3084.7,3.2502]
[1720580894031,0.0635826,3084.8,3084.7,6.57522]
[1720580894404,0.0635826,3084.8,3084.7,5.60822]
[1720580897909,0.0635826,3084.8,3084.7,6.57522]
[1720580898607,0.0635826,3084.8,3084.7,3.0]
[1720580898850,0.0635826,3084.8,3084.4,0.967]
[1720580899415,0.0635826,3084.8,3084.6,0.967]
[1720580901721,0.0635826,3084.8,3084.6,3.967]
[1720580901933,0.0635826,3084.8,3084.6,4.59712]
[1720580903345,0.0635826,3084.8,3084.4,3.967]
[1720580903346,2.4081826,3084.8,3084.4,3.967]
[1720580903551,2.4081826,3084.8,3084.4,0.967]
[1720580903849,2.4081826,3084.8,3084.5,3.0]
[1720580904051,2.4081826,3084.8,3084.4,0.967]
[1720580904949,2.4081826,3084.8,3084.2,3.967]
[1720580906627,2.4081826,3084.8,3084.2,3.0]
[1720580913562,2.4081826,3084.8,3084.2,3.55665475]
[1720580915427,0.0635826,3084.8,3084.2,3.55665475]
[1720580915631,0.0635826,3084.8,3084.2,3.62148566]
[1720580917461,0.0635826,3084.8,3084.2,3.55665475]
[1720580918005,0.0635826,3084.8,3084.3,0.06483004]
[1720580918134,0.0635826,3084.8,3084.4,0.36214848]
[1720580919464,0.0635826,3084.8,3084.5,2.4487]
[1720580919780,0.0635826,3084.8,3084.5,5.4487]
[1720580924783,0.0635826,3084.8,3084.6,0.06482555]
[1720580925005,0.0635826,3084.8,3084.6,3.06482555]
[1720580925154,0.0635826,3084.8,3084.7,3.40205256]
[1720580925475,0.40287869,3084.8,3084.7,6.40205256]
[1720580925677,0.0635826,3084.8,3084.7,6.46687225]
[1720580926984,0.0635826,3084.8,3084.7,7.01687225]
[1720580927183,0.0635826,3084.8,3084.7,8.14546174]
[1720580927372,0.0635826,3084.8,3084.7,8.1454665]
[1720580928268,0.0635826,3084.8,3084.7,7.01687225]
[1720580929081,0.0635826,3084.8,3084.7,8.14545878]
[1720580929286,0.0635826,3084.8,3084.7,7.01687225]
[1720580929483,0.0635826,3084.8,3084.7,8.14543539]
[1720580929682,0.33935519,3086.0,3084.8,2.38751217]
[1720580929883,2.2623,3086.6,3085.9,0.967]
[1720580930081,2.2623,3086.6,3086.3,0.967]
[1720580930082,2.60162992,3086.6,3086.3,0.967]
[1720580930283,2.2623,3086.6,3086.3,0.967]
[1720580930865,2.48853,3086.6,3085.8,3.0]
[1720580931063,2.48853,3086.6,3085.8,0.967]
[1720580931264,2.48853,3086.6,3085.9,0.967]
[1720580931491,2.48853,3086.6,3086.1,0.967]
[1720580932270,0.248853,3086.5,3086.1,0.967]
[1720580933881,0.248853,3086.5,3085.7,3.0]
[1720580934087,2.2796,3086.4,3085.8,0.967]
[1720580934282,2.2796,3086.4,3085.7,3.0]
[1720580934492,0.33931826,3086.9,3085.6,8.437]
[1720580934493,0.967,3086.2,3085.6,7.47]
[1720580934665,0.967,3086.0,3085.6,7.47]
[1720580934870,2.2571,3085.9,3085.6,7.47]
[1720580935071,2.2571,3085.9,3085.1,7.47]
[1720580936493,2.2571,3085.9,3085.2,3.0]
[1720580936774,0.32241,3085.8,3085.2,3.0]
[1720580937706,0.32241,3085.8,3085.1,7.47]
[1720580937869,2.4621,3085.7,3085.1,7.47]
[1720580940194,2.4621,3085.7,3084.8,7.47]
[1720580942997,2.4621,3085.7,3084.9,3.0]
[1720580943377,2.70831,3085.7,3084.9,3.0]
[1720580946314,2.70031,3085.7,3084.9,3.0]
[1720580946515,0.33936498,3085.6,3084.9,3.0]
[1720580948210,0.33936498,3085.6,3084.8,7.47]
[1720580948602,1.06640923,3085.6,3084.8,7.47]
[1720580948933,0.44874092,3085.5,3084.8,7.47]
[1720580949229,2.2905,3085.4,3084.8,7.47]
[1720580952040,2.2905,3085.4,3084.1,10.47]
[1720580953355,2.2905,3085.3,3084.1,10.47]
[1720580953554,3.0,3085.4,3084.1,10.47]
[1720580953555,2.2905,3085.1,3084.1,10.47]
[1720580956669,2.2905,3085.1,3084.2,0.967]
[1720580958833,0.967,3085.0,3084.1,10.47]
[1720580959035,2.2905,3084.9,3084.1,7.47]
[1720580959334,0.32575,3084.8,3084.1,7.47]
[1720580961243,2.2905,3084.9,3084.1,7.47]
[1720580961960,0.33942895,3084.8,3084.1,7.47]
[1720580962171,2.3821,3084.7,3084.1,7.47]
[1720580962466,2.3821,3084.7,3084.0,0.967]
[1720580963032,2.3821,3084.7,3084.2,0.967]
[1720580965893,2.3821,3084.7,3084.0,0.967]
[1720580969883,2.3821,3084.7,3083.6,11.9077]
[1720580969884,1.5,3084.5,3082.6,0.67038656]
[1720580970185,0.967,3083.4,3082.2,3.3412]
[1720580970393,0.967,3083.4,3082.4,0.967]
[1720580970394,0.3232,3082.6,3082.4,0.967]
[1720580970590,0.3232,3082.6,3082.2,2.3742]
[1720580970793,0.3232,3082.6,3082.3,0.23742]
[1720580971975,0.3232,3082.6,3082.5,0.967]
[1720580972621,0.3232,3082.6,3082.3,3.23742]
[1720580976686,2.4975,3083.5,3082.3,3.23742]
[1720580988548,2.471,3084.4,3082.4,3.0056]
[1720580988710,2.471,3084.2,3082.5,3.624302]
[1720580989442,2.471,3084.2,3082.6,2.4513]
[1720580989609,2.471,3084.2,3082.6,3.0013]
[1720580989814,2.471,3084.2,3082.7,3.0]
[1720580990014,2.471,3084.2,3082.8,0.60661579]
[1720580990720,2.471,3084.2,3083.0,2.3959]
[1720580994662,0.968,3084.0,3083.0,3.3639]
[1720580994850,0.968,3084.0,3083.1,3.0]
[1720580995156,1.3119,3084.0,3083.1,3.0]
[1720580996535,0.3439,3084.0,3083.1,3.0]
[1720580996833,0.3439,3084.0,3083.0,2.3959]
[1720580999576,2.471,3084.2,3083.0,2.3959]
[1720581001767,2.471,3084.2,3083.1,0.06485874]
[1720581003688,2.3721,3084.6,3083.4,2.4326]
[1720581008474,2.81217783,3084.9,3083.5,0.06484664]
[1720581008676,2.4338,3084.9,3083.4,2.3975]
[1720581008865,2.4338,3084.9,3083.5,2.3975]
[1720581009063,2.67718,3084.9,3083.7,2.3975]
[1720581009611,2.67718,3084.9,3083.7,5.3975]
[1720581010995,2.67718,3084.9,3083.7,2.3975]
[1720581011197,2.67718,3084.9,3083.5,3.0]
[1720581011397,2.3611,3084.7,3083.5,3.0]
[1720581016521,0.7276743,3084.6,3083.5,3.0]
[1720581016724,2.3219,3084.8,3083.5,3.0]
[1720581017019,2.3219,3084.6,3083.5,3.0]
[1720581018704,0.968,3084.5,3083.5,3.968]
[1720581021898,2.3885,3084.4,3083.5,3.0]
[1720581022203,0.4084203,3084.3,3083.4,7.47]
[1720581022418,1.3764203,3084.3,3083.4,7.47]
[1720581023437,0.968,3084.1,3083.4,7.47]
[1720581023594,0.968,3083.9,3082.8,9.8791]
[1720581023798,0.968,3083.7,3082.8,9.8791]
[1720581024030,0.968,3083.7,3082.8,7.47]
[1720581024031,2.3885,3083.6,3082.8,7.47]
[1720581024231,0.33565,3083.5,3082.8,7.47]
[1720581025336,1.30365,3083.5,3082.8,7.47]
[1720581026736,0.33565,3083.5,3082.8,7.47]
[1720581027733,1.06378039,3083.5,3082.8,7.47]
[1720581029136,0.33565,3083.5,3082.8,7.47]
[1720581029509,1.06379384,3083.5,3082.3,9.8445]
[1720581029721,0.272415,3083.4,3082.4,4.50045]
[1720581029923,0.272415,3083.4,3082.4,3.0]
[1720581030124,0.272415,3083.4,3082.3,2.3745]
[1720581031552,0.72814384,3083.5,3082.3,2.3745]
[1720581031758,0.05568325,3083.4,3082.3,2.3745]
[1720581044983,2.3976,3083.3,3082.3,2.3745]
[1720581045153,2.3976,3083.3,3082.1,3.0]
[1720581045358,0.05119948,3083.2,3082.2,1.28257]
[1720581046572,0.05119948,3083.2,3082.3,2.44087444]
[1720581046909,2.4331,3084.6,3082.5,2.376]
[1720581047051,0.04943822,3083.1,3082.8,2.325]
[1720581047252,2.4331,3084.6,3082.9,2.50415362]
[1720581047583,0.04952328,3084.5,3082.9,2.50415362]
[1720581047787,2.3914,3084.4,3083.0,3.48291536]
[1720581048285,2.2663,3084.2,3083.0,3.48291536]
[1720581048446,2.2663,3084.0,3083.0,3.0]
[1720581048646,2.4908,3083.8,3082.9,0.968]
[1720581049084,0.0499201,3083.7,3082.9,0.968]
[1720581049757,0.0499201,3083.7,3082.9,1.03286656]
[1720581049957,0.0499201,3083.7,3083.0,0.06486515]
[1720581050255,0.40079211,3083.7,3082.6,0.06486489]
[1720581050475,0.0499201,3083.7,3082.9,0.968]
[1720581051069,0.0499201,3083.7,3083.0,0.06486654]
[1720581051277,0.0499201,3083.7,3082.9,0.968]
[1720581052595,0.40079211,3083.7,3082.9,0.968]
[1720581053708,0.0499201,3083.7,3082.9,0.968]
[1720581053887,0.0499201,3083.7,3083.1,0.968]
[1720581056183,3.2392,3084.1,3083.1,4.03285726]
[1720581056385,2.2712,3084.1,3083.3,0.968]
[1720581056586,0.04982092,3084.0,3083.3,0.968]
[1720581057291,0.04982092,3084.0,3083.1,3.968]
[1720581057493,0.23210209,3083.9,3083.1,3.968]
[1720581057923,0.04985776,3083.8,3083.1,3.968]
[1720581058518,2.2712,3084.1,3083.1,3.968]
[1720581058716,0.04984925,3083.7,3083.1,3.968]
[1720581058862,2.2712,3084.1,3083.1,3.968]
[1720581059064,0.04984925,3083.6,3083.1,4.61424]
[1720581059386,2.2712,3084.1,3083.1,4.61424]
[1720581059791,0.04984925,3084.0,3083.1,4.61424]
[1720581061826,0.04984925,3084.0,3083.1,4.67909735]
[1720581061975,0.04984925,3084.0,3083.3,0.968]
[1720581062171,0.04984925,3084.0,3083.4,0.06485735]
[1720581062377,0.04984925,3084.0,3083.5,0.968]
[1720581064476,0.04984925,3084.0,3083.3,1.43590974]
[1720581065496,0.04984925,3084.0,3083.1,3.64624]
[1720581065497,2.3662,3083.9,3083.1,4.61424]
[1720581065806,2.41364512,3083.9,3083.2,3.0]
[1720581065992,2.41364512,3083.9,3083.1,1.61424]
[1720581066423,3.71980963,3083.9,3082.9,3.0]
[1720581066630,2.3418,3083.8,3082.9,3.0]
[1720581068683,0.04741678,3083.7,3082.9,3.0]
[1720581069397,0.04741678,3083.7,3083.0,0.968]
[1720581069593,2.3598,3083.6,3083.0,0.968]
[1720581069903,2.3598,3083.6,3082.9,3.0]
[1720581070230,0.04741678,3083.5,3082.9,3.0]
[1720581072312,0.968,3083.3,3082.4,7.47]
[1720581072481,2.4758,3083.2,3082.4,7.47]
[1720581072682,0.24758,3083.1,3082.5,0.968]
[1720581073001,2.4758,3083.0,3082.4,7.47]
[1720581073215,2.52312892,3083.0,3082.4,7.47]
[1720581073813,2.52312892,3083.0,3082.5,3.0]
[1720581074506,2.52312892,3083.0,3082.5,3.968]
[1720581078690,0.04732892,3083.0,3082.7,0.968]
[1720581079014,2.3302,3083.4,3082.7,0.968]
[1720581079189,0.04714182,3082.9,3082.7,1.37128723]
[1720581079387,2.3302,3083.4,3082.7,0.968]
[1720581079809,0.04714182,3083.3,3082.7,0.968]
[1720581080406,0.04714182,3083.3,3082.7,1.03287207]
[1720581080608,0.04714182,3083.3,3082.9,0.968]
[1720581081205,2.4695,3083.7,3082.9,0.968]
[1720581081400,0.0470143,3083.2,3082.9,0.968]
[1720581081586,2.4695,3083.7,3082.9,0.968]
[1720581081787,0.0470143,3083.1,3082.9,0.968]
[1720581081987,2.4695,3083.7,3082.9,0.968]
[1720581082217,0.24695,3083.6,3082.9,0.968]
[1720581082390,0.29400683,3083.6,3082.9,0.968]
[1720581082733,0.29400683,3083.6,3082.7,0.968]
[1720581082941,3.4375,3083.5,3082.5,3.968]
[1720581083220,0.7281459,3083.4,3082.5,3.968]
[1720581083423,0.77522257,3083.4,3082.5,3.968]
[1720581084834,0.968,3083.3,3082.5,3.0]
[1720581085131,2.69086491,3083.2,3082.5,3.0]
[1720581085334,2.51654265,3083.2,3082.5,3.0]
[1720581085769,0.968,3083.1,3082.4,7.47]
[1720581086031,1.69629378,3083.1,3082.0,8.438]
[1720581086214,0.39537213,3083.0,3082.0,8.438]
[1720581086532,0.39537213,3083.0,3082.0,7.47]
[1720581086735,0.39537213,3083.0,3082.0,8.438]
[1720581087125,0.39537213,3083.0,3082.1,3.0]
[1720581087326,2.288,3082.9,3082.1,3.0]
[1720581087525,0.26833721,3082.8,3082.1,3.0]
[1720581087724,0.31525507,3082.8,3082.1,3.0]
[1720581090910,0.31525507,3082.8,3082.0,7.47]
[1720581091107,0.968,3082.7,3082.0,7.47]
[1720581091306,1.01477892,3082.7,3082.0,7.47]
[1720581092006,0.968,3082.5,3082.0,7.47]
[1720581092208,0.32187,3082.4,3082.0,7.47]
[1720581092434,0.36854399,3082.4,3081.5,8.438]
[1720581092634,0.36854399,3082.4,3081.6,3.0]
[1720581093319,2.2593,3082.3,3081.6,3.0]
[1720581093635,2.30593144,3082.3,3081.4,0.968]
[1720581095957,0.968,3082.2,3081.1,7.47]
[1720581096123,0.32739314,3082.1,3081.2,0.968]
[1720581096329,0.37382883,3082.1,3081.2,0.968]
[1720581096739,2.3918,3081.8,3080.9,2.422]
[1720581097037,2.3918,3081.8,3080.7,7.47]
[1720581097038,2.72778,3081.8,3080.7,7.47]
[1720581097236,2.72778,3081.8,3080.8,0.968]
[1720581097429,0.04636193,3081.7,3080.8,0.968]
[1720581098638,0.04636193,3081.7,3080.7,7.47]
[1720581098944,0.04636193,3081.7,3080.8,0.9892]
[1720581099649,0.04636193,3081.7,3080.8,3.0]
[1720581099865,2.3611,3081.6,3080.3,3.0]
[1720581100170,0.04612357,3081.5,3080.4,2.292]
[1720581100350,0.04612357,3081.5,3080.5,0.5292]
[1720581100542,0.04612357,3081.5,3080.5,3.0]
[1720581100958,0.04612357,3081.5,3080.4,2.292]
[1720581105740,2.466,3081.4,3080.1,2.3249]
[1720581105931,2.51202423,3081.4,3080.2,0.53249]
[1720581106359,2.51202423,3081.4,3080.1,2.3249]
[1720581108340,2.466,3081.3,3080.0,3.06491919]
[1720581108671,2.51191353,3081.3,3080.0,3.06491919]
[1720581109477,2.51191353,3081.3,3080.0,3.0]
[1720581109773,2.55069135,3081.2,3080.1,1.27949]
[1720581109976,2.55069135,3081.2,3080.0,3.0]
[1720581110178,2.55069135,3081.2,3079.9,2.38982672]
[1720581110179,0.04591353,3081.1,3079.9,2.38982672]
[1720581111159,0.04591353,3081.1,3079.9,2.3249]
[1720581111373,0.04591353,3081.1,3080.0,0.23249]
[1720581111570,2.2995,3081.2,3080.0,3.23249]
[1720581111758,0.04581699,3081.0,3080.0,3.23249]
[1720581111964,2.2995,3081.2,3080.0,3.23249]
[1720581112272,0.04581699,3080.9,3080.0,3.23249]
[1720581112481,2.2995,3081.5,3080.1,0.555739]
[1720581112839,2.2995,3081.3,3080.1,0.555739]
[1720581113441,2.2995,3081.1,3080.1,0.555739]
[1720581113673,2.5340317,3081.1,3080.1,0.555739]
[1720581114056,0.04581699,3081.0,3080.1,0.555739]
[1720581114477,0.04581699,3081.0,3080.1,0.62066192]
[1720581114774,0.04581699,3081.0,3080.1,0.555739]
[1720581120254,0.04581699,3081.0,3080.2,0.06492286]
[1720581120781,0.04581699,3081.0,3080.3,0.97]
[1720581121595,2.2884,3080.9,3080.2,0.97]
[1720581121907,2.33421699,3080.9,3080.2,0.97]
[1720581122197,2.33421699,3080.9,3080.2,1.4458229]
[1720581123104,2.33421699,3080.9,3080.2,0.4758229]
[1720581123601,2.33421699,3080.9,3080.2,1.4458229]
[1720581123797,2.2884,3080.9,3080.2,1.4458229]
[1720581123952,0.04581699,3080.8,3080.2,1.4458229]
[1720581124301,2.2884,3080.9,3080.2,1.4458229]
[1720581124302,2.2884,3080.9,3080.3,0.20015619]
[1720581124707,0.04581699,3080.8,3080.3,0.20015619]
[1720581128510,0.04581699,3080.8,3080.2,0.4758229]
[1720581129279,0.04581699,3080.8,3080.1,1.525739]
[1720581131607,0.04581699,3080.8,3080.1,4.525739]
[1720581131807,2.2884,3080.9,3080.1,0.97]
[1720581132004,3.0,3081.4,3079.6,9.8626]
[1720581132005,0.04570911,3080.7,3079.6,9.8626]
[1720581132355,2.3478,3080.6,3079.7,0.97]
[1720581132510,2.3478,3080.6,3079.8,1.08326]
[1720581132710,0.0456438,3080.5,3079.7,0.97]
[1720581133234,2.3478,3080.6,3079.7,0.97]
[1720581133903,2.3478,3080.6,3079.9,0.97]
[1720581137742,2.3478,3080.6,3080.1,0.97]
[1720581138041,0.04430769,3080.5,3080.1,0.97]
[1720581138535,2.3603,3080.9,3080.2,0.33792]
[1720581138848,0.04433326,3080.4,3080.3,0.06491945]
[1720581139142,2.3603,3081.7,3080.4,2.4092]
[1720581139332,2.3603,3081.7,3080.8,0.97]
[1720581140334,0.72889716,3081.6,3080.8,0.97]
[1720581140517,0.72889716,3081.6,3080.6,0.97]
[1720581141145,1.69889716,3081.6,3080.6,0.97]
[1720581141342,1.69889716,3081.6,3080.7,0.430792]
[1720581141648,2.4472,3081.5,3080.7,0.430792]
[1720581142544,0.72891348,3081.4,3080.7,0.430792]
[1720581145803,0.72890767,3081.4,3080.8,0.06490981]
[1720581145920,2.3337,3081.8,3081.3,0.97]
[1720581146426,2.3337,3082.2,3081.3,0.97]
[1720581146818,2.3337,3082.2,3081.6,0.97]
[1720581148777,2.4373,3082.6,3081.6,0.97]
[1720581148943,2.4373,3082.6,3081.6,3.97]
[1720581149271,2.77803,3082.6,3081.6,3.97]
[1720581149439,2.77803,3082.6,3082.0,0.97]
[1720581149440,2.4373,3082.6,3082.0,0.97]
[1720581149634,2.3585,3083.1,3082.1,0.06488763]
[1720581149852,2.3585,3083.1,3082.8,0.97]
[1720581150051,2.3585,3083.1,3082.1,10.47]
[1720581150258,0.04019186,3083.0,3082.1,3.0]
[1720581150574,2.3585,3083.1,3082.1,3.0]
[1720581150575,2.3585,3083.1,3082.1,0.60730837]
[1720581150752,2.3585,3083.1,3082.1,3.06487837]
[1720581151141,2.3585,3083.1,3082.5,0.97]
[1720581151636,0.04023726,3083.0,3082.5,0.97]
[1720581152053,0.04023726,3083.0,3082.1,3.0]
[1720581152249,0.04023726,3083.0,3082.2,0.97]
[1720581152573,0.33687373,3083.0,3081.8,3.9869]
[1720581153071,2.3585,3083.1,3081.8,3.9869]
[1720581153636,0.04039043,3083.0,3081.8,3.9869]
[1720581154888,0.04039043,3083.0,3081.8,0.9869]
[1720581155065,0.04039043,3083.0,3081.7,3.0]
[1720581156494,2.4989,3082.9,3081.7,3.0]
[1720581156996,0.04039043,3082.8,3081.7,3.0]
[1720581160694,0.04039043,3082.8,3081.8,2.3781]
[1720581160893,0.04039043,3082.8,3081.8,2.44298104]
[1720581161094,2.4241,3083.2,3081.8,2.44298104]
[1720581161095,2.4241,3083.2,3081.9,0.5442981]
[1720581161299,0.04039043,3082.7,3081.9,3.5442981]
[1720581161478,2.4241,3083.2,3081.9,3.5442981]
[1720581161901,0.04039043,3083.1,3081.9,3.5442981]
[1720581162087,0.04039043,3083.1,3082.0,0.59872791]
[1720581166879,2.2669,3083.0,3082.0,0.59872791]
[1720581167422,0.04014092,3082.9,3081.7,3.1641292]
[1720581167576,2.2669,3083.0,3081.8,3.0]
[1720581167877,2.2669,3083.0,3081.6,5.325]
[1720581168083,0.04014092,3082.9,3081.7,1.32822]
[1720581168602,2.2669,3083.0,3081.7,4.32822]
[1720581169009,0.04014092,3082.9,3081.7,4.32822]
[1720581169507,2.4096,3082.8,3081.7,3.77822]
[1720581169811,0.28517456,3082.7,3081.7,3.77822]
[1720581170204,0.24497409,3082.7,3081.7,3.77822]
[1720581173401,2.4096,3082.8,3081.7,3.77822]
[1720581174017,0.04020047,3082.7,3081.7,3.77822]
[1720581174383,2.4096,3082.8,3081.7,3.77822]
[1720581174578,0.04020047,3082.6,3082.1,0.969]
[1720581174785,2.4096,3082.8,3082.1,0.969]
[1720581174981,0.04022034,3082.5,3082.1,0.969]
[1720581175182,2.65056,3082.8,3082.1,0.969]
[1720581175512,0.04022034,3082.4,3082.1,0.969]
[1720581175815,2.65056,3082.8,3082.1,0.969]
[1720581176178,0.04022034,3082.7,3082.1,0.969]
[1720581177015,0.30929837,3082.7,3082.1,0.969]
[1720581177606,2.4001,3082.6,3082.1,0.969]
[1720581177995,0.04022034,3082.5,3082.1,0.969]
[1720581178511,0.04022034,3082.5,3081.9,0.969]
[1720581179307,0.31116018,3082.5,3081.9,0.969]
[1720581180030,2.4201,3082.4,3081.9,0.969]
[1720581180400,0.04019764,3082.3,3081.9,0.969]
[1720581180797,0.04019764,3082.3,3081.2,11.9389]
[1720581181110,0.04019764,3082.3,3081.7,0.969]
[1720581182283,0.04019764,3082.3,3081.9,0.969]
[1720581182508,2.4201,3082.4,3081.9,0.969]
[1720581182719,0.04002463,3082.2,3081.9,0.969]
[1720581182924,0.0399282,3082.3,3081.9,0.969]
[1720581183102,2.4201,3082.4,3081.9,0.969]
[1720581183301,0.0399282,3082.2,3081.9,0.969]
[1720581183521,2.4201,3082.4,3081.9,0.969]
[1720581183737,2.4201,3082.4,3082.1,0.969]
[1720581183899,0.0399282,3082.3,3082.1,0.969]
[1720581184101,2.4201,3082.4,3082.1,0.969]
[1720581184404,2.4201,3082.4,3081.8,3.969]
[1720581187440,2.4201,3082.4,3081.8,0.969]
[1720581187995,2.66211,3082.4,3081.8,0.969]
[1720581188423,0.0399991,3082.3,3081.6,0.969]
[1720581189123,0.0399991,3082.3,3081.8,0.969]
[1720581189639,2.3254,3082.2,3081.8,0.969]
[1720581191725,2.482,3082.9,3082.0,0.969]
[1720581192024,0.76828835,3082.8,3082.0,0.969]
[1720581192206,1.09331719,3082.8,3082.0,0.969]
[1720581193432,1.09331719,3082.8,3082.2,0.969]
[1720581193433,0.03992819,3082.8,3082.2,0.969]
[1720581193737,0.03992819,3082.8,3082.4,0.969]
[1720581195215,0.03992819,3082.8,3082.2,0.969]
[1720581205949,2.482,3082.9,3082.2,0.969]
[1720581206122,0.04014092,3082.8,3082.2,0.969]
[1720581208764,0.29235501,3082.8,3082.2,0.969]
[1720581208952,2.3243,3082.7,3082.2,0.969]
[1720581209464,0.04023736,3082.6,3082.0,0.969]
[1720581209638,2.3243,3082.7,3082.0,0.969]
[1720581209938,2.55673,3082.7,3082.0,0.969]
[1720581210136,2.3673,3082.6,3081.8,7.47]
[1720581210581,2.3673,3082.4,3081.8,7.47]
[1720581210872,0.04017212,3082.3,3081.6,0.969]
[1720581211371,2.3673,3082.4,3081.6,0.969]
[1720581211577,0.23673,3082.3,3081.6,0.969]
[1720581214481,2.3673,3082.4,3081.6,0.969]
[1720581214773,0.04017212,3082.2,3081.6,0.969]
[1720581214998,2.3673,3082.4,3081.6,0.969]
[1720581215345,0.04017212,3082.3,3081.6,0.969]
[1720581215582,2.3673,3082.4,3081.6,0.969]
[1720581215743,2.60403,3082.4,3081.6,0.969]
[1720581215949,0.04017212,3082.3,3081.6,0.969]
[1720581216346,2.60403,3082.4,3081.6,0.969]
[1720581216780,0.04017212,3082.3,3081.6,0.969]
[1720581219950,2.328,3082.2,3081.4,7.47]
[1720581220170,2.59242021,3082.2,3081.4,0.969]
[1720581220371,0.04000477,3082.1,3081.4,0.969]
[1720581220674,2.59242021,3082.2,3081.4,0.969]
[1720581220881,0.03998491,3082.0,3081.4,0.969]
[1720581221075,0.25924202,3082.1,3081.4,0.969]
[1720581221277,0.03998491,3081.9,3081.4,0.969]
[1720581221504,0.25924202,3082.1,3081.4,0.969]
[1720581222109,0.03998491,3082.0,3081.4,0.969]
[1720581222605,0.03998491,3082.0,3081.6,0.969]
[1720581223169,0.3027076,3082.0,3081.6,0.969]
[1720581223910,0.3027076,3082.0,3081.4,0.969]
[1720581224202,0.03998491,3082.0,3081.4,0.969]
[1720581224512,2.328,3082.2,3081.4,0.969]
[1720581224803,0.03998491,3081.9,3081.4,0.969]
[1720581224995,2.328,3082.2,3081.4,0.969]
[1720581225396,0.03998491,3082.1,3081.4,0.969]
[1720581226476,0.2767834,3082.1,3081.4,0.969]
[1720581227509,2.2586,3082.0,3081.4,0.969]
[1720581227706,2.29836364,3082.0,3081.4,0.969]
[1720581227871,2.29836364,3082.0,3081.2,3.0]
[1720581228078,2.29836364,3082.0,3081.1,0.969]
[1720581228279,0.22983636,3081.9,3081.1,0.969]
[1720581228479,0.26954609,3081.9,3081.1,0.969]
[1720581228711,2.2586,3081.8,3081.1,0.969]
[1720581228901,2.317,3081.6,3080.7,7.47]
[1720581229214,2.317,3081.4,3080.7,0.969]
[1720581229428,0.03958772,3081.3,3080.7,0.969]
[1720581231628,2.4943,3081.2,3080.6,3.0]
[1720581231915,2.74768877,3081.2,3080.5,0.969]
[1720581235125,0.03939755,3081.1,3080.5,0.969]
[1720581237539,0.03939755,3081.1,3080.4,3.0]
[1720581237731,0.03939755,3081.1,3080.5,2.016]
[1720581239430,0.03939755,3081.1,3080.5,1.047]
[1720581239637,0.03939755,3081.1,3080.5,0.969]
[1720581241640,2.4142,3081.0,3080.3,7.47]
[1720581241841,2.45355499,3081.0,3080.3,7.47]
[1720581245347,2.45355499,3081.0,3080.3,7.47]
[1720581246355,2.33161515,3081.0,3080.3,7.47]
[1720581246515,2.33161515,3081.0,3080.0,0.969]
[1720581246710,0.33006152,3080.9,3080.0,3.969]
[1720581246909,0.36905878,3080.9,3080.0,0.969]
[1720581247121,1.33805878,3080.9,3079.9,3.0]
[1720581247326,1.00799726,3080.9,3079.9,0.969]
[1720581247840,0.03899726,3080.9,3080.1,3.3286]
[1720581248045,0.03899726,3080.9,3080.2,0.33286]
[1720581248223,0.969,3081.1,3080.2,0.33286]
[1720581248621,0.03896035,3081.0,3080.2,0.33286]
[1720581249213,2.425,3080.9,3080.2,0.33286]
[1720581249530,2.425,3080.9,3080.1,3.3286]
[1720581249732,0.03896035,3080.8,3080.1,0.969]
[1720581250356,0.03896035,3080.8,3080.0,3.0]
[1720581250688,0.03896035,3080.8,3080.1,0.969]
[1720581251073,0.03896035,3080.8,3080.0,3.22513]
[1720581252392,0.03896035,3080.8,3079.9,3.2203]
[1720581252595,0.03896035,3080.8,3079.9,0.969]
[1720581252596,2.4257,3080.7,3079.9,0.969]
[1720581252792,0.969,3080.5,3079.6,0.969]
[1720581252994,0.969,3080.3,3079.3,10.719]
[1720581253171,2.4257,3080.2,3079.3,5.2839]
[1720581253373,2.46207651,3080.2,3079.3,3.249]
[1720581254406,0.969,3080.1,3079.1,3.2611]
[1720581254563,0.969,3080.1,3079.2,3.32611]
[1720581254771,0.03631108,3080.0,3079.2,3.32611]
[1720581255419,2.67190765,3080.2,3079.3,0.969]
[1720581255723,0.03631108,3080.1,3079.3,0.969]
[1720581255882,0.03631108,3080.1,3079.5,0.969]
[1720581256523,0.03631108,3080.1,3079.4,0.429511]
[1720581257307,0.03631108,3080.1,3079.3,0.969]
[1720581262200,2.2834,3080.0,3079.3,0.969]
[1720581262609,0.03612333,3079.9,3079.3,0.969]
[1720581264204,2.2834,3079.8,3078.9,7.47]
[1720581264435,0.03612333,3079.9,3078.9,7.47]
[1720581264436,2.2834,3079.6,3078.9,7.47]
[1720581264768,2.2834,3079.6,3078.8,0.969]
[1720581265200,0.03596685,3079.5,3078.8,0.969]
[1720581265608,0.03596685,3079.5,3079.0,0.969]
[1720581266407,0.03596685,3079.5,3078.7,3.0]
[1720581266612,0.03596685,3079.5,3079.0,0.969]
[1720581267010,0.03596685,3079.5,3079.1,2.3554]
[1720581267422,2.2834,3079.9,3079.2,0.969]
[1720581267625,0.0357762,3079.4,3079.2,0.969]
[1720581267834,2.2834,3079.9,3079.2,0.969]
[1720581268035,2.2834,3079.9,3079.1,2.3554]
[1720581268246,0.0357762,3079.8,3079.1,2.3554]